Cogmind - Beta 9.2 @@@ ROGUE MODE // 2019.11.16 @ 08:00:59 Player: Demise Result: Destroyed by Y-45 Defender with Beam Rifle Performance ------------- Evolutions (1) 500 Regions Visited (3) 600 Robots Destroyed (38) 190 Value Destroyed (687) 687 Prototype IDs (0) 0 Alien Tech Used (0) 0 Bonus (0) 0 TOTAL SCORE: 1977 Bonus ------- None Cogmind --------- Core Integrity 0/400 Matter 225/300 Energy 66/100 System Corruption 0% Temperature Cool (66) Movement Flying (280) Ox3 Location -9/Materials Parts ------- > --- POWER (1) -------- (None) > --- PROPULSION (2) --- VTOL Module > --- UTILITY (4) ------ Small Storage Unit Improved Sensor Array Seismic Analyzer Hardened Light Armor Plating > --- WEAPON (2) ------- EM Shotgun Autogun > --- INVENTORY (6) ---- Medium Storage Unit Large Storage Unit High-capacity Matter Pod (200) Grenade Launcher Datajack Mining Laser Peak State ------------ > --- POWER ------------ (None) > --- PROPULSION ------- VTOL Module > --- UTILITY ---------- Small Storage Unit Improved Sensor Array Seismic Analyzer Hardened Light Armor Plating > --- WEAPON ----------- Light EM Pulse Cannon Light EM Pulse Cannon > --- INVENTORY -------- Medium Storage Unit Large Storage Unit High-capacity Matter Pod Grenade Launcher Datajack Mining Laser [Rating: 12] Favorites ----------- Power Light Ion Engine Engine Light Ion Engine Propulsion Wheel Leg Aluminum Leg Wheel Wheel Flight Unit Flight Unit Utility Medium Storage Unit Device Improved Sensor Array Storage Medium Storage Unit Processor Seismic Analyzer Protection Medium Armor Plating Weapon Light Assault Rifle Energy Gun Heavy EM Pulse Gun Energy Cannon Light EM Pulse Cannon Ballistic Gun Light Assault Rifle Launcher Grenade Launcher Build | -11 -10 -10 -9 ------- Run | Scr Mat Min Mat Slots Evolved 2 | . . . 2 Power . | . . . . Propulsion . | . . . . Utility 2 | . . . 2 Weapon . | . . . . Parts Attached 44 | 13 4 5 22 Power 2 | 1 . . 1 Engine 2 | 1 . . 1 Core . | . . . . Reactor . | . . . . Propulsion 16 | 9 . 3 4 Treads . | . . . . Leg 1 | . . 1 . Wheel 9 | 9 . . . Hover . | . . . . Flight 6 | . . 2 4 Utility 9 | 1 2 1 5 Device 2 | . . . 2 Storage 4 | 1 1 1 1 Processor 1 | . . . 1 Hackware . | . . . . Protection 2 | . 1 . 1 Artifact . | . . . . Weapon 17 | 2 2 1 12 Energy Gun 6 | . 2 . 4 Energy Cannon 2 | . . . 2 Ballistic Gun 8 | 2 . 1 5 Ballistic Cannon . | . . . . Launcher 1 | . . . 1 Special Weapon . | . . . . Impact Weapon . | . . . . Slashing Weapon . | . . . . Piercing Weapon . | . . . . Special Melee Weapon . | . . . . Unidentified Prototypes . | . . . . Parts Lost 18 | . . 5 13 Power 2 | . . 1 1 Propulsion 5 | . . 1 4 Utility 2 | . . 1 1 Weapon 9 | . . 2 7 Highest Loss Streak 7 | . . 4 7 Average Slot Usage (%) 77 | . 99 76 57 Engine 4 | . 14 . 1 Leg 4 | . . 9 . Wheel 12 | . 28 11 . Flight 7 | . . 6 15 Device 1 | . . . 6 Storage 17 | . 14 23 11 Processor 2 | . . . 8 Protection 4 | . 13 . 2 Energy Gun 7 | . 6 10 1 Ballistic Gun 13 | . 21 13 8 Naked Turns . | . . . . Heaviest Build 28 | 10 24 28 18 Greatest Support 32 | 32 20 20 8 Greatest Overweight (x) 8 | . 1 8 3 Average Overweight (x) 1 | . . 1 . Largest Inventory Capacity 14 | 6 8 14 8 Average Capacity 9 | 5 7 12 6 Most Carried 9 | 6 8 9 8 Average Carried 6 | 3 7 7 6 Final Capacity 8 | 6 8 8 6 Final Carried 8 | 5 8 8 6 Class Distribution -------------------- 90% | Mutant 9% | Scavenger-Mutant Dominant Class ---------------- Mutant | -10/Materials Mutant | -10/Mines Mutant | -9/Materials Resources | -11 -10 -10 -9 ----------- Run | Scr Mat Min Mat Matter Collected 1029 | 421 296 78 234 Remotely . | . . . . Salvage Created 1002 | 178 282 101 441 Parts 69 | 18 17 5 29 Haulers Intercepted 1 | . . . 1 Recyclers Shooed . | . . . . Parts Field Recycled . | . . . . Retrieved Matter . | . . . . Parts Self-Destructed . | . . . . Prevented . | . . . . Kills | -11 -10 -10 -9 ------- Run | Scr Mat Min Mat Combat Hostiles Destroyed 27 | . 8 6 13 Guns 24 | . 8 6 10 AOE 3 | . . . 3 Classes Destroyed 7 | 3 2 . 2 Worker 4 | 2 2 . . Tunneler 5 | 5 . . . Hauler 1 | . . . 1 Recycler 1 | 1 . . . Swarmer 14 | . 3 6 5 Grunt 11 | . 5 . 6 Sentry 2 | . . . 2 Best Kill Streak 6 | 6 4 3 5 Combat Bots Only 5 | . 3 3 5 Max Kills in Single Turn 3 | 1 2 1 3 Gunslinging 1 | . . . 1 Exploded 3 | . . . 3 Melee . | . . . . Uniques/NPCs Destroyed . | . . . . Combat | -11 -10 -10 -9 -------- Run | Scr Mat Min Mat Damage Taken 2019 | . 320 371 1328 Core 521 | . 53 62 406 Absorbed by Shields . | . . . . Core Remaining (%) 77 | 100 . 54 . Volleys Fired 140 | 23 29 31 57 Largest 2 | 2 2 2 2 Hottest 90 | 40 90 90 68 Shots Fired 218 | 46 58 36 78 Gun 216 | 46 58 36 76 Cannon . | . . . . Launcher 2 | . . . 2 Special . | . . . . Kinetic 196 | 46 56 26 68 Thermal 6 | . . . 6 Explosive 2 | . . . 2 Electromagnetic 14 | . 2 10 2 Robot Hit Streak 16 | 10 10 9 16 Robot Miss Streak 5 | 3 4 5 2 Penetration Max . | . . . . Secondary Targets 3 | . 1 . 2 Max Gunslinging Chain 1 | . 1 . 1 Shots Hit Robots 151 | 28 36 21 66 Core Hits 59 | 10 14 9 26 Critical Hits 5 | . 1 1 3 Critical Kills 2 | . . 1 1 Critical Parts Destroyed 3 | . 1 . 2 Melee Attacks . | . . . . Impact . | . . . . Slashing . | . . . . Piercing . | . . . . Sneak Attacks . | . . . . Combat Hostiles . | . . . . Follow-up Attacks . | . . . . Damage Inflicted 1774 | 285 383 211 895 Guns 1521 | 285 383 211 642 Cannons . | . . . . Explosions 251 | . . . 251 Melee . | . . . . Ramming 2 | . . . 2 Kinetic 1380 | 285 367 173 555 Thermal 73 | . . . 73 Explosive 251 | . . . 251 Electromagnetic 68 | . 16 38 14 Impact . | . . . . Slashing . | . . . . Piercing . | . . . . Highest Corruption . | . . . . Average Corruption . | . . . . Corruption Purged . | . . . . Overload Shots . | . . . . Overflow Damage 1 | . . . 1 Projectiles . | . . . . Explosions 1 | . . . 1 Melee . | . . . . Knockbacks . | . . . . Impact . | . . . . Kinetic . | . . . . Secondary . | . . . . Self-Inflicted Damage 33 | . . . 33 Shots 2 | . . . 2 Rammed 1 | . . . 1 Targets Rammed 1 | . . . 1 Kicked . | . . . . Crushed . | . . . . Highest Temperature 96 | . 39 96 57 Average Temperature 15 | . 9 49 7 Received Heat Transfer 483 | . 114 . 369 Siege Activations . | . . . . Robots Corrupted . | . . . . Combat Hostiles . | . . . . Parts Fried . | . . . . Impact Corruptions . | . . . . Robots Melted . | . . . . Combat Hostiles . | . . . . Parts Melted . | . . . . Heat Transferred 174 | . . . 174 Parts Sabotaged . | . . . . Parts Stolen . | . . . . Parts Stripped . | . . . . Power Chain Reactions . | . . . . Missiles Intercepted . | . . . . Alert | -11 -10 -10 -9 ------- Run | Scr Mat Min Mat Peak Influence 308 | 40 279 153 308 Average Influence 130 | 20 149 105 201 Maximum Alert Level 1 | . 1 . 1 Low Security (%) 77 | 100 68 100 36 Level 1 22 | . 31 . 63 Level 2 . | . . . . Level 3 . | . . . . Level 4 . | . . . . Level 5 . | . . . . High Security . | . . . . Max Security . | . . . . Squads Dispatched 4 | . 3 . 1 Investigation 4 | . 3 . 1 Extermination . | . . . . Reinforcement . | . . . . Assault . | . . . . Garrison . | . . . . Intercept . | . . . . Construction Impeded . | . . . . Haulers Reinforced . | . . . . Stealth | -11 -10 -10 -9 --------- Run | Scr Mat Min Mat Distress Signals 3 | . 1 . 2 Communications Jammed . | . . . . Distress Signals . | . . . . Times Spotted 44 | . 14 6 24 Peak Tracking Total 8 | . 4 3 8 Tactical Retreats 4 | . 2 . 2 Traps | -11 -10 -10 -9 ------- Run | Scr Mat Min Mat Traps Triggered 5 | . 2 . 3 Indirectly . | . . . . Trap Hack Attempts . | . . . . Triggered . | . . . . Disarmed . | . . . . Reprogrammed . | . . . . Reused . | . . . . Traps Extracted . | . . . . Installed . | . . . . Triggered . | . . . . Machines | -11 -10 -10 -9 ---------- Run | Scr Mat Min Mat Machines Disabled 1 | . . 1 . Max in Single Turn 1 | . . 1 . Machines Sabotaged . | . . . . Garrisons Compromised . | . . . . Overloaded Fab Kills . | . . . . Fab Network Shutdowns . | . . . . Hacking | -11 -10 -10 -9 --------- Run | Scr Mat Min Mat Machines Accessed 10 | . 6 . 4 Terminals 10 | . 6 . 4 Fabricators . | . . . . Repair Stations . | . . . . Recycling Units . | . . . . Scanalyzers . | . . . . Garrison Access . | . . . . Total Hacks 26 | . 18 . 8 Successful 14 | . 8 . 6 Failed 12 | . 10 . 2 Catastrophic 1 | . 1 . . Database Lockouts . | . . . . Manual 23 | . 15 . 8 Terminals 26 | . 18 . 8 Fabricators . | . . . . Repair Stations . | . . . . Recycling Units . | . . . . Scanalyzers . | . . . . Garrison Access . | . . . . Terminal Hacks 5 | . 3 . 2 Part Schematic 3 | . 2 . 1 Branch Access Points 1 | . . . 1 Hauler Manifests 1 | . 1 . . Fabricator Hacks . | . . . . Repair Station Hacks . | . . . . Recycling Unit Hacks . | . . . . Scanalyzer . | . . . . Garrison Access Hacks . | . . . . Unauthorized Hacks 24 | . 15 . 9 Terminals 9 | . 5 . 4 Botnet 9 | . 5 . 4 Fabricators . | . . . . Repair Stations . | . . . . Recycling Units . | . . . . Scanalyzers . | . . . . Garrison Access . | . . . . Data Cores Recovered . | . . . . Used . | . . . . Hacking Detections 8 | . 6 . 2 Full Trace Events 1 | . 1 . . Feedback Events . | . . . . Feedback Blocked . | . . . . Robot Schematics Acquired . | . . . . Robots Built . | . . . . Matter . | . . . . Time . | . . . . Total Robot Build Rating . | . . . . Part Schematics Acquired 3 | . 2 . 1 Parts Built . | . . . . Matter . | . . . . Time . | . . . . Total Part Build Rating . | . . . . Parts Repaired . | . . . . Time . | . . . . Parts Recycled . | . . . . Recycled Matter . | . . . . Retrieved Matter . | . . . . Retrieved Components . | . . . . Parts Scanalyzed . | . . . . Part Schematics Acquired . | . . . . Parts Damaged . | . . . . Bothacking | -11 -10 -10 -9 ------------ Run | Scr Mat Min Mat Used RIF Installer . | . . . . Robots Hacked . | . . . . Non-combat . | . . . . Combat . | . . . . Robot Hacks Applied . | . . . . Relay Couplers Released . | . . . . Robots Rewired . | . . . . Allies Hacked . | . . . . Hacks Repelled . | . . . . Allies | -11 -10 -10 -9 -------- Run | Scr Mat Min Mat Total Allies . | . . . . Largest Group . | . . . . Highest-Rated Group . | . . . . Highest-Rated Ally . | . . . . Total Orders . | . . . . Ally Attacks . | . . . . Total Damage . | . . . . Kills . | . . . . Allies Corrupted . | . . . . Allies Melted . | . . . . Intel | -11 -10 -10 -9 ------- Run | Scr Mat Min Mat Robot Analysis Total . | . . . . Derelict Logs Recovered . | . . . . Drone Launches . | . . . . Drone Recoveries . | . . . . Exploration | -11 -10 -10 -9 ------------- Run | Scr Mat Min Mat Turns Passed 1623 | 170 375 682 396 Spaces Moved 970 | 78 271 385 236 Core 22 | 1 . 1 20 Treads . | . . . . Legs 239 | . . 239 . Wheels 360 | 77 271 12 . Hover . | . . . . Flight 349 | . . 133 216 Fastest Speed 37 | 50 80 90 37 Average Speed 117 | 91 88 156 94 Slowest Speed 520 | 100 90 520 280 Overloaded Moves . | . . . . Propulsion Burnouts . | . . . . Robots Hopped . | . . . . Cave-ins Triggered . | . . . . Exploration Rate (%) 40 | 4 37 78 42 Regions Visited 3 Branch Regions 1 Pre-discovered Areas . | . . . . Known Exits Taken . | . . . . Unknown Exits Taken 3 | 1 1 1 . Scrap Searched 2 | . . 2 . Spaces Dug . | . . . . Terrain Destroyed 8 | . . . 8 Melee . | . . . . Projectile . | . . . . AOE 8 | . . . 8 Actions | -11 -10 -10 -9 --------- Run | Scr Mat Min Mat Total 1263 | 138 355 434 336 Wait 63 | . 41 7 15 Move 967 | 77 270 384 236 Hop . | . . . . Pick Up 19 | 12 6 1 . Fast Attach 32 | 9 2 4 17 Attach 6 | 1 1 1 3 Detach 4 | . . 3 1 Swap 6 | 3 1 . 2 Drop 25 | 13 5 3 4 Fire 140 | 23 29 31 57 Melee . | . . . . Ram 1 | . . . 1 Kick . | . . . . Crush . | . . . . Escape Stasis . | . . . . Rewire . | . . . . Trap . | . . . . Miscellaneous . | . . . . Route ------- -11/Scrapyard -10/Materials (discovered 2 exits: *Mat / [*Min]) -10/Mines (discovered 2 exits: *Mat x2) -9/Materials (discovered 1 exit: *Min) History --------- Turn | Location | Event 26 | -11/Scrapyard | Discovered new exit (range 14) 171 | -11/Scrapyard | Entered Materials 296 | -10/Materials | Discovered new exit (range 7) 306 | -10/Materials | Build established: Mutant 366 | -10/Materials | Discovered new exit (range 14) 546 | -10/Materials | Entered Mines 555 | -10/Mines | Discovered new exit (range 9) 612 | -10/Mines | Lost 4 parts (1p1n1u1w) 810 | -10/Mines | Discovered new exit (range 6) 1228 | -10/Mines | Entered Materials 1228 | -9/Materials | Evolved 2 slots: Utility x2 1382 | -9/Materials | Core integrity fell below 50% 1431 | -9/Materials | Lost 7 parts (2n1u4w) 1466 | -9/Materials | Core integrity fell below 20% 1507 | -9/Materials | Identified exit to Mines 1527 | -9/Materials | Lost 5 parts (1p2n2w) 1624 | -9/Materials | Destroyed by Y-45 Defender with Beam Rifle Last Messages --------------- 01522_ U-05 Engineer lays Concrete. 01528_ Acquired Hrd. Light Armor Plating. 01536_ Acquired Lgt. EM Pulse Cannon. 01552_ Slammed into W-16 Scout. 01560_ Dropped Lgt. EM Pulse Cannon. 01571_ Connecting with Terminal... >>Trojan(Botnet) Trojan loaded successfully. Testing... Terminal linked with 3 systems. Awaiting botnet instructions. 01573_ K-01 Serf cleans the Matter Pump. 01581_ Acquired Autogun. 01582_ W-16 Scout destroyed. 01582_ Critical hit. 01584_ K-01 Serf collects debris. 01586_ K-01 Serf cleans the Matter Pump. 01588_ K-01 Serf collects debris. 01590_ K-01 Serf cleans the Matter Pump. 01602_ Acquired EM Shotgun. Map ----- +----------------------------------------------------+ | | | | | | | | | | | | | | | ?????????????????????????????????????????????????? | | ?????????????????????????????????????????????????? | | ?????????????????????????????????????????????????? | | ?????????????######??????????????????????????????? | | ?????????????# ###???????????????????????????? | | ????????????## ????????????????????????????? | | ???????????? ????????????????????????????? | | ???????????? ????????????????????????????? | | ?????????# ? ????????????????????????????? | | ???????### """ #????????????????????????????? | | ???????# """ #????????????????????????????? | | ???????# """ #????????????????????????????? | | ???????# ########?????????????????????? | | ???????# # #?????????????????????? | | ???????# """ # Y #?????????????????????? | | ???????# """ # "" #?????????????????????? | | ???????# """ + """ #?????????????????????? | | ???????# # S"Y#?????????????????????? | | ???????# # @ #?????????????????????? | | ???????# """ ########?????????????????????? | | ???????# """ #????????????????????????????? | | ? #### """ #????????????????????????????? | | ? #????????????????????????????? | | ######### ???????????????????? | | ? ? ?????????????????? | | ?? ###### ! #????????????????????? | | ?????????# """%! """ #????????????????????? | | ?????????# "T ! """ #????????????????????? | | ?????????# """ """ #????????????????????? | | ?????????# #????????????????????? | | ?????????# #????????????????????? | | ???????######+########## #????????????????????? | | ???????# #?????? ##+#????????????????????? | | ???????# #???????????????????????????????? | | ???????# ! #???????????????????????????????? | | ###+##?# ]]! #???????????????????????????????? | | #######+#####???????????????????????????????? | | + #?????????????????????????????????? | | ? # [ #?????????????????????????????????? | | ?# # #?????????????????????????????????? | | ?# # #?????????????????????????????????? | | ?# # #?????????????????????????????????? | | ?# # #?????????????????????????????????? | +----------------------------------------------------+ Best States ------------- Heat Dissipation 28 Energy Generation 10 Energy Capacity 125 Matter Stores 300 Matter Capacity 300 Sight Range 16 Robot Scan Range 13 Terrain Scan Range 16 Terrain Scan Density 60 Armor Coverage 225 Evasion (%) 62 Item Schematics ----------------- Hcp. Storage Unit | -10/Materials | Hacked Hcp. Battery | -10/Materials | Hacked Hcp. Matter Pod | -9/Materials | Hacked Robot Schematics ------------------ None Fabricated ------------ Nothing Alien Tech Used ----------------- None Achievements -------------- None Challenges ------------ None Game ------ Seed DisruptionImpulseHammer Manual? 0 Play Time 00:19:45 Cumulative 128.2 hours Start 2019.11.16 @ 07:41:44 End 2019.11.16 @ 08:00:59 Sessions 1 Manual Loads 0 Difficulty Rogue Special Mode None Game No. 170 Rogue 159 Adventurer 11 Explorer 0 Win Type - Total 0 Types 0/0/0/0/0/0/0 Lore% 44 Gallery% 57 Achievement% 40 Wizard Run 0 Options --------- ASCII 0 Keyboard 1 Movement Numpad Keybinds 0 Fullscreen 1 Font 12/Terminus Map View 83x54 Tactical HUD 1 Map Filters NONE Filters NONE Steam 1 RUN: 57ee6ce9-c792-44f7-aa95-0a9cfa112683